Cogmind - Beta 14 @@@ ROGUE MODE // 2024.08.16 @ 14:16:25 Player: FallingSands Result: Destroyed by 2I-ORJ(R) with Subdweller Beam Cannon Performance ------------- Evolutions (0) 0 Regions Visited (2) 400 Robots Destroyed (35) 175 Value Destroyed (827) 827 Prototype IDs (2) 40 Alien Tech Used (0) 0 Bonus (-26) -26 TOTAL SCORE: 1416 Bonus ------- Friendly Fire -26 Cogmind --------- Core Integrity 0/250 Matter 276/300 Energy 176/200 System Corruption 0% Temperature Cool (9) Movement Treading (320) Ox2 Location -10/Subcaves Parts ------- > --- POWER (1) -------- Subdweller Power Source > --- PROPULSION (2) --- Light Treads Light Treads > --- UTILITY (2) ------ High-capacity Storage Unit Makeshift Thermal Plating > --- WEAPON (2) ------- Beamcaster Subdweller Machine Gun > --- INVENTORY (20) --- Ion Engine Light Ion Engine Light Treads Wheel Compact Wheel Compact Wheel Compact Wheel Improved Heat Sink Improved Heat Sink Huge Storage Unit Terrain Scanner Seismic Detector Scrap Shield Tractor Beam Beam Cannon Subdweller Machine Gun Grenade Launcher Datajack Mining Laser Peak State ------------ > --- POWER ------------ Subdweller Power Source > --- PROPULSION ------- Light Treads Compact Wheel > --- UTILITY ---------- High-capacity Storage Unit Makeshift Thermal Plating > --- WEAPON ----------- Beamcaster Subdweller Machine Gun > --- INVENTORY -------- Ion Engine Light Ion Engine Light Treads Light Treads Wheel Compact Wheel Compact Wheel Improved Heat Sink Improved Heat Sink Huge Storage Unit Terrain Scanner Seismic Detector Scrap Shield Tractor Beam Beam Cannon Subdweller Machine Gun Grenade Launcher Datajack Mining Laser [Rating: 18] Favorites ----------- Power Light Ion Engine Engine Light Ion Engine Propulsion Aluminum Leg Treads Light Treads Leg Aluminum Leg Wheel Compact Wheel Utility Improved Heat Sink Device Improved Heat Sink Storage Medium Storage Unit Processor Transport Network Coupler Protection Makeshift Thermal Plating Weapon Assault Rifle Energy Gun EM Pulse Gun Energy Cannon Beam Cannon Ballistic Gun Assault Rifle Ballistic Cannon Light Cannon Launcher Grenade Launcher Special Weapon Mining Laser Build | -11 -10 -10 ------- Run | Yrd Mat Sub Slots Evolved . | . . . Power . | . . . Propulsion . | . . . Utility . | . . . Weapon . | . . . Parts Attached 74 | 8 45 21 Power 4 | 1 2 1 Engine 4 | 1 2 1 Core . | . . . Reactor . | . . . Propulsion 20 | 2 13 5 Treads 5 | . 2 3 Leg 7 | 2 5 . Wheel 8 | . 6 2 Hover . | . . . Flight . | . . . Utility 27 | 2 16 9 Device 18 | 2 10 6 Storage 4 | . 4 . Processor 2 | . 1 1 Hackware . | . . . Protection 3 | . 1 2 Artifact . | . . . Weapon 23 | 3 14 6 Energy Gun 11 | 2 7 2 Energy Cannon 1 | . 1 . Ballistic Gun 6 | 1 1 4 Ballistic Cannon 1 | . 1 . Launcher 1 | . 1 . Special Weapon 3 | . 3 . Impact Weapon . | . . . Slashing Weapon . | . . . Piercing Weapon . | . . . Special Melee Weapon . | . . . Unidentified Prototypes . | . . . Parts Lost 2 | . 2 . Power 1 | . 1 . Propulsion . | . . . Utility . | . . . Weapon 1 | . 1 . Highest Loss Streak 2 | . 2 . To Critical Strikes . | . . . Average Slot Usage (%) 99 | . 99 99 Engine 13 | . 13 14 Treads 4 | . 2 15 Leg 15 | . 19 . Wheel 7 | . 6 12 Device 16 | . 17 13 Storage 11 | . 10 14 Energy Gun 15 | . 15 14 Ballistic Gun 12 | . 11 14 Peak Build Rating 18 | 9 11 18 Average Rating 10 | 6 9 13 On Entrance 6 | . 9 10 Naked Turns . | . . . Heaviest Build 89 | 9 89 55 Greatest Support 40 | 20 20 40 Greatest Overweight (x) 5 | . 5 5 Average Overweight (x) 1 | . . 4 Largest Inventory Capacity 25 | 5 25 20 Average Capacity 11 | 5 10 20 Most Carried 20 | 4 17 20 Average Carried 10 | 1 8 19 Final Capacity 20 | 5 20 20 Final Carried 20 | 4 17 20 Class Distribution -------------------- 56% | Mutant 43% | Scavenger-Mutant Dominant Class ---------------- Mutant | -10/Materials Scavenger-Mutant | -10/Subcaves Resources | -11 -10 -10 ----------- Run | Yrd Mat Sub Matter Collected 1251 | 280 738 233 Remotely . | . . . Salvage Created 1363 | 142 1029 192 Parts 78 | 15 55 8 Haulers Intercepted 2 | . 2 . Recyclers Shooed . | . . . Parts Field Recycled . | . . . Retrieved Matter . | . . . Parts Self-Destructed 8 | . . 8 Prevented . | . . . Kills | -11 -10 -10 ------- Run | Yrd Mat Sub Combat Hostiles Destroyed 18 | 1 12 5 Guns 14 | 1 8 5 AOE 4 | . 4 . Classes Destroyed 9 | 2 6 1 Worker 3 | . 3 . Builder 1 | . 1 . Tunneler 4 | 4 . . Hauler 2 | . 2 . Recycler 3 | . 3 . Operator 1 | . 1 . Watcher 3 | . 3 . Grunt 15 | 1 12 2 Subdweller 3 | . . 3 Best Kill Streak 8 | 3 8 2 Combat Bots Only 4 | 1 4 2 Max Kills in Single Turn 3 | 1 3 1 Gunslinging . | . . . Exploded 2 | . 2 . Melee . | . . . Uniques/NPCs Destroyed . | . . . Combat | -11 -10 -10 -------- Run | Yrd Mat Sub Hostile Shots Fired 72 | 4 37 31 Missed 25 | 3 14 8 Damage Taken 808 | 39 334 435 Core 251 | . 62 189 Absorbed by Shields . | . . . Ignored by Resistances 9 | . . 9 Regen/Repaired (Parts) 475 | . 475 . Core Remaining (%) 100 | 100 . . Volleys Fired 89 | 7 63 19 Largest 2 | 2 2 2 Hottest 105 | 80 100 105 Shots Fired 163 | 14 111 38 Gun 157 | 14 105 38 Cannon . | . . . Launcher 2 | . 2 . Special 4 | . 4 . Kinetic 58 | . 39 19 Thermal 29 | . 10 19 Explosive 2 | . 2 . Electromagnetic 74 | 14 60 . Robot Hit Streak 14 | 8 9 14 Robot Miss Streak 3 | 1 3 3 Penetration Max . | . . . Secondary Targets 3 | . 2 1 Max Gunslinging Chain 1 | . 1 1 Shots Hit Robots 106 | 12 68 26 Core Hits 51 | 6 34 11 Critical Kills . | . . . Critical Parts Destroyed 1 | . 1 . Critical Strikes 2 | . 2 . Burn 1 | . 1 . Destroy 1 | . 1 . Melee Attacks . | . . . Impact . | . . . Slashing . | . . . Piercing . | . . . Sneak Attacks . | . . . Combat Hostiles . | . . . Follow-up Attacks . | . . . Damage Inflicted 2061 | 180 1404 477 Guns 1562 | 140 945 477 Cannons . | . . . Explosions 499 | 40 459 . Melee . | . . . Ramming . | . . . Kinetic 589 | . 347 242 Thermal 680 | 40 405 235 Explosive 152 | . 152 . Electromagnetic 640 | 140 500 . Impact . | . . . Slashing . | . . . Piercing . | . . . Highest Corruption . | . . . Average Corruption . | . . . Corruption Purged . | . . . Corruption Blocked . | . . . Overload Shots . | . . . Overflow Damage . | . . . Projectiles . | . . . Explosions . | . . . Melee . | . . . Knockbacks . | . . . Impact . | . . . Kinetic . | . . . Secondary . | . . . Self-Inflicted Damage 51 | 27 24 . Shots 2 | 1 1 . Rammed . | . . . Targets Rammed . | . . . Kicked . | . . . Crushed . | . . . Highest Temperature 60 | 60 36 1 Average Temperature 14 | 29 9 1 Received Heat Transfer 324 | 6 195 123 Siege Activations . | . . . Robots Corrupted . | . . . Combat Hostiles . | . . . Parts Fried 3 | . 3 . Impact Corruptions . | . . . Robots Melted . | . . . Combat Hostiles . | . . . Parts Melted 1 | . . 1 Heat Transferred 1140 | . 646 494 Parts Sabotaged . | . . . Parts Stolen . | . . . Parts Stripped . | . . . Power Chain Reactions 6 | 1 5 . Alert | -11 -10 -10 ------- Run | Yrd Mat Sub Peak Influence 194 | 40 194 . Initial 26 | . 26 . Average 42 | 17 43 . Maximum Alert Level . | . . . Low Security (%) 100 | 100 100 . Level 1 . | . . . Level 2 . | . . . Level 3 . | . . . Level 4 . | . . . Level 5 . | . . . High Security . | . . . Max Security . | . . . Squads Dispatched 2 | . 2 . Investigation 1 | . 1 . Extermination . | . . . Reinforcement 1 | . 1 . Assault . | . . . Garrison . | . . . Intercept . | . . . Searches Triggered . | . . . Construction Impeded . | . . . Haulers Reinforced . | . . . Active Scanning Responses . | . . . Cargo Convoy Interrupts . | . . . Stealth | -11 -10 -10 --------- Run | Yrd Mat Sub Distress Signals . | . . . Communications Jammed . | . . . Distress Signals . | . . . Times Spotted 32 | 1 19 12 Peak Tracking Total 6 | 1 4 6 Tactical Retreats 1 | . 1 . Traps | -11 -10 -10 ------- Run | Yrd Mat Sub Traps Triggered 1 | . 1 . Indirectly . | . . . Trap Hack Attempts . | . . . Triggered . | . . . Disarmed . | . . . Reprogrammed . | . . . Reused . | . . . Traps Extracted . | . . . Installed . | . . . Triggered . | . . . Machines | -11 -10 -10 ---------- Run | Yrd Mat Sub Machines Disabled 1 | . 1 . Max in Single Turn 1 | . 1 . Machines Repaired . | . . . Machines Dismantled . | . . . Machines Sabotaged . | . . . Overloaded Fab Kills . | . . . Hacking | -11 -10 -10 --------- Run | Yrd Mat Sub Machines Accessed 9 | . 9 . Terminals 6 | . 6 . Fabricators . | . . . Repair Stations 1 | . 1 . Recycling Units 2 | . 2 . Scanalyzers . | . . . Garrison Access . | . . . Total Hacks 22 | . 22 . Successful 12 | . 12 . Failed 10 | . 10 . Catastrophic 2 | . 2 . Database Lockouts . | . . . Manual 1 | . 1 . Terminals 16 | . 16 . Fabricators . | . . . Repair Stations 4 | . 4 . Recycling Units 2 | . 2 . Scanalyzers . | . . . Garrison Access . | . . . Terminal Hacks 6 | . 6 . Robot Analysis 1 | . 1 . Prototype ID Bank 1 | . 1 . Dispatch Records 1 | . 1 . Hauler Manifests 1 | . 1 . Zone Layout 2 | . 2 . Fabricator Hacks . | . . . Repair Station Hacks 4 | . 4 . Scan Component 2 | . 2 . Repair 2 | . 2 . Recycling Unit Hacks 2 | . 2 . Retrieve Components 2 | . 2 . Scanalyzer . | . . . Garrison Access Hacks . | . . . Unauthorized Hacks . | . . . Terminals . | . . . Fabricators . | . . . Repair Stations . | . . . Recycling Units . | . . . Scanalyzers . | . . . Garrison Access . | . . . Data Cores Recovered . | . . . Used . | . . . Hacking Detections 5 | . 5 . Full Trace Events . | . . . Feedback Events . | . . . Feedback Blocked . | . . . Robot Schematics Acquired . | . . . Robots Built . | . . . Authchips . | . . . Time . | . . . Total Robot Build Rating . | . . . Part Schematics Acquired . | . . . Parts Built . | . . . Authchips . | . . . Time . | . . . Total Part Build Rating . | . . . Parts Repaired 2 | . 2 . Time 52 | . 52 . Parts Recycled . | . . . Recycled Matter . | . . . Retrieved Matter . | . . . Retrieved Components 19 | . 19 . Parts Scanalyzed . | . . . Part Schematics Acquired . | . . . Parts Damaged . | . . . Bothacking | -11 -10 -10 ------------ Run | Yrd Mat Sub Used RIF Installer . | . . . Robots Hacked . | . . . Non-combat . | . . . Combat . | . . . Robot Hacks Applied . | . . . Relay Couplers Released . | . . . Fabnet Peak Effective % . | . . . Robots Rewired . | . . . Allies Hacked . | . . . Hacks Repelled . | . . . Allies | -11 -10 -10 -------- Run | Yrd Mat Sub Total Allies . | . . . Largest Group . | . . . Highest-Rated Group . | . . . Highest-Rated Ally . | . . . Total Orders . | . . . Ally Attacks . | . . . Total Damage . | . . . Kills . | . . . Allies Corrupted . | . . . Allies Melted . | . . . Intel | -11 -10 -10 ------- Run | Yrd Mat Sub Robot Analysis Total 1 | . 1 . Derelict Logs Recovered 1 | . . 1 Drone Launches . | . . . Drone Recoveries . | . . . Exploration | -11 -10 -10 ------------- Run | Yrd Mat Sub Turns Passed 4210 | 184 3254 772 Spaces Moved 2544 | 129 2016 399 Core 20 | 20 . . Treads 1 | . . 1 Legs 1046 | 109 937 . Wheels 1477 | . 1079 398 Hover . | . . . Flight . | . . . Fastest Speed 50 | 50 100 140 Average Speed 125 | 109 121 151 Slowest Speed 240 | 120 190 240 Overloaded Moves . | . . . Propulsion Burnouts . | . . . Robots Hopped . | . . . Cave-ins Triggered . | . . . Exploration Rate (%) 45 | 7 100 30 Regions Visited 2 Branch Regions 1 Pre-discovered Areas 1 | . . 1 Known Exits Taken . | . . . Unknown Exits Taken 2 | 1 1 . Scrap Searched . | . . . Spaces Dug 12 | . 12 . Terrain Destroyed 34 | 2 32 . Melee . | . . . Projectile 4 | . 4 . AOE 30 | 2 28 . Terrain Rammed . | . . . Walls Destroyed . | . . . Machines Disabled . | . . . Actions | -11 -10 -10 --------- Run | Yrd Mat Sub Total 3370 | 154 2689 527 Wait 580 | 7 504 69 Move 2542 | 128 2015 399 Hop . | . . . Pick Up 39 | 3 32 4 Fast Attach 38 | 8 18 12 Attach 2 | . 2 . Detach 1 | 1 . . Swap 34 | . 25 9 Drop 45 | . 30 15 Fire 89 | 7 63 19 Melee . | . . . Ram . | . . . Kick . | . . . Crush . | . . . Escape Stasis . | . . . Rewire . | . . . Trap . | . . . Miscellaneous . | . . . Route ------- -11/Scrapyard -10/Materials (discovered 6 exits: [*Mat x3] / [*Min x2] / [*Sub]) -10/Subcaves (discovered 1 exit: [*Mat]) History --------- Turn | Location | Event 2 | -11/Scrapyard | Met Revision 17 71 | -11/Scrapyard | Discovered new exit (range 8) 185 | -11/Scrapyard | Entered Materials 300 | -10/Materials | Build established: Mutant 654 | -10/Materials | Discovered new exit (range 5) 914 | -10/Materials | Discovered new exit (range 13) 976 | -10/Materials | Build established: Scavenger-Mutant 1016 | -10/Materials | Discovered new exit (range 14) 1022 | -10/Materials | Discovered new exit (range 4) 1165 | -10/Materials | Discovered new exit (range 13) 2169 | -10/Materials | Build established: Mutant 2852 | -10/Materials | Discovered new exit (range 12) 3303 | -10/Materials | Repaired Grenade Launcher 3330 | -10/Materials | Repaired Huge Storage Unit 3439 | -10/Materials | Entered Subcaves 3511 | -10/Subcaves | Ambushed by swarm of Subdwellers 3518 | -10/Subcaves | Ambushed by Subdwellers from Twisted Machinery 3524 | -10/Subcaves | Ambushed by Subdwellers from Twisted Machinery 3532 | -10/Subcaves | Core integrity fell below 50% 3541 | -10/Subcaves | Core integrity fell below 20% 3565 | -10/Subcaves | Lost 3 allies 3863 | -10/Subcaves | Build established: Scavenger-Mutant 3950 | -10/Subcaves | Learned location of Mines (-9) 4111 | -10/Subcaves | Shifting Twisted Machinery released Mak. Thermal Plating 4111 | -10/Subcaves | Shifting Twisted Machinery released Riot Gun 4152 | -10/Subcaves | Discovered new exit (range 8) 4211 | -10/Subcaves | Destroyed by 2I-ORJ(R) with Subdweller Beam Cannon Last Messages --------------- 03909_ Acquired Beamcaster. 03911_ Sml. Laser fries itself beyond repair. 03911_ Acquired 10 matter. 03950_ Acquired derelict log, extracted data. World map updated: -9/Mines. 03961_ Subatomizers dissect the Sub. Power Source. 03982_ Dropped Sub. Machine Gun. 03984_ Subatomizers dissect the Sub. Power Source. 03985_ Acquired 10 matter. 03995_ Subatomizers dissect the Sub. Power Source. 04062_ AO-4Q8(R): "OHNO!" 04079_ AO-4Q8(R) destroyed. 04084_ Acquired 22 matter. Mak. Thermal Plating falls loose from the Twisted Machinery. Riot Gun falls loose from the Twisted Machinery. 04120_ Dropped Com. Wheel. 04120_ Acquired Mak. Thermal Plating. 04127_ Acquired 9 matter. 04129_ Acquired 11 matter. 04152_ EXIT=FOUND Map ----- +----------------------------------------------------+ | ?????????????????????????????????????????????????? | | ?????????????????????????????????????????????????? | | ?????????????????????????????????????????????????? | | ?????????????????????????????????????????????????? | | ?????????????????????????????????????????????????? | | ?????????????????????????????????????????????????? | | ?????????????????????????????????????????????????? | | ?????????????????????????????????????????????????? | | ?????????????????????????????????????????????????? | | ?????????????????????????????????????????????????? | | ?????????????????????????????????????????????????? | | ?????????????????????????????????????????????????? | | ?????????????????????????????????????????????????? | | ?????????????????????????????????????????????????? | | ?????????????????????????????????????????????????? | | ?????????????????????????????????????????????????? | | ???????????????????????????????????????"#????????? | | ???????????????????????????????????????!#????????? | | ???????????????????????????????????????=###??????? | | ???????????????????????????????????????% #??????? | | ??????????????????????????????????????? #??????? | | ??????????????????????????????????????? #??????? | | ??????????????????????????????????????? #??????? | | ?????????????????????????????????????## ###????? | | ??????????????????????#####??????????# # #????? | | ??????????????????????# @#???######## ##???? | | ??????????????????????## ##?## ## #???? | | ???????????????????????## #?# #????????? | | ???????????????????????## R### #?????????? | | ???????????????????????# ### < #?????????? | | ???????????????????????# ###?## #?????????? | | ########???????????????# ##????# ##?????????? | | "*%#[# #???????????????########????## ##?????????? | | %&%[=&##??????????????????????????# #?????????? | | *%&!*%= #??????????????????????????## ##????????? | | %&#!#!*####?????????????????????????# #????????? | | #####& & ##????????????????????????## ###???????? | | ???# "" " #?????????????????????????## #???????? | | ???# #??????????????????????????## ##??????? | | ??## ""#???????????????????????????## ##?????? | | ?## "#????????????????????????????## #?????? | | ?# ###?????????????????????????????# ###???? | | ?# ##???????????????????????????????## ##??? | | ?##### ##????????????????????????????????# #??? | | ?????# ###??????????????????????????????# #??? | | ?????# #####??????????????????????????# ##??? | | ?????## ## #####?????????????????????## [##?? | | ### #?????????????????????# ""##? | | #?????????????????????# " =#? | | # ## # ##?????????????????????## " ## | +----------------------------------------------------+ Best States ------------- Heat Dissipation 39 Energy Generation 15 Energy Capacity 250 Matter Stores 300 Matter Capacity 300 Sight Range 16 Terrain Scan Range 16 Terrain Scan Density 10 Armor Coverage 100 Resistance: TH 10 Evasion (%) 55 Recoil Reduction 2 Item Schematics ----------------- None Robot Schematics ------------------ None Fabricated ------------ Nothing Alien Tech Used ----------------- None Achievements -------------- None Challenges ------------ None Game ------ Seed BattleThiefGenerator Manual? 0 Play Time 00:50:22 Cumulative 6.4 hours Start 2024.08.16 @ 12:50:16 End 2024.08.16 @ 14:16:25 Sessions 4 Manual Loads 0 Difficulty Rogue Special Mode None Game No. 2 Rogue 2 Adventurer 0 Explorer 0 Win Type - Total 1 Types 1/0/0/0/0/0/0/0/0 Lore% 7 Gallery% 23 Achievement% 43 Wizard Run 0 Options --------- Layout 0 ASCII 1 Keyboard 0 Movement Mouse Keybinds 0 Fullscreen 2 Font 36/Terminus++ Map View 76x50 Zoom Use 0% Tactical HUD 1 Map Filters NONE Filters NONE Steam 1 RUN: 1112f8bf-dabb-43b6-8d0c-503d2e3d261c